bitfinex-derivatives/quotes_ETHF0:USTF0_20250712
["timestamp","ask_amount","ask_price","bid_price","bid_amount"]
[1752341067120,1.29452,2939.2,2939.1,3.22264]
[1752341068222,0.6143,2939.2,2939.1,3.22264]
[1752341069026,0.689628,2939.5,2939.4,2.24737]
[1752341069224,2.17355904,2939.5,2939.4,2.5424]
[1752341069925,1.303928,2939.5,2939.4,2.5424]
[1752341070726,3.127428,2939.5,2939.4,1.8835]
[1752341072730,3.127428,2939.5,2939.4,2.5424]
[1752341074321,1.303928,2939.5,2939.4,2.5424]
[1752341074928,2.221728,2939.5,2939.4,2.5424]
[1752341075327,2.221728,2939.5,2939.4,3.22257]
[1752341075530,3.127428,2939.5,2939.4,2.5424]
[1752341076618,2.224328,2939.5,2939.4,2.5424]
[1752341076823,3.206628,2939.5,2939.4,2.5424]
[1752341079334,4.07628428,2939.5,2939.4,2.5424]
[1752341083133,0.68025,2939.1,2938.9,3.2078]
[1752341083340,1.31025,2939.1,2939.0,2.5632]
[1752341084836,1.31025,2939.1,2939.0,3.24346]
[1752341085538,1.31024,2939.1,2939.0,3.24346]
[1752341086838,1.31024,2939.1,2939.0,2.5632]
[1752341087038,0.68033,2938.7,2938.6,3.8303]
[1752341087233,3.19733,2938.7,2938.6,3.8303]
[1752341087735,3.19733,2938.7,2938.6,5.771]
[1752341087940,2.29263,2938.7,2938.6,6.45136]
[1752341088140,1.31033,2938.7,2938.6,5.771]
[1752341088839,1.31033,2938.7,2938.6,6.45136]
[1752341089844,1.31033,2938.7,2938.6,5.771]
[1752341090344,1.31033,2938.7,2938.6,6.45136]
[1752341090544,4.90831,2939.3,2938.8,0.6803]
[1752341090750,27.47370539,2939.2,2939.1,2.5632]
[1752341092235,31.77076127,2939.2,2939.1,0.9809]
[1752341092444,1.31026,2939.0,2938.9,1.5823]
[1752341092634,5.15800127,2939.0,2938.9,2.5632]
[1752341093138,2.18174539,2939.0,2938.9,2.5632]
[1752341094446,3.16404539,2939.0,2938.9,2.5632]
[1752341095246,4.06874539,2939.0,2938.9,2.5632]
[1752341097249,3.16404539,2939.0,2938.9,3.24349]
[1752341097548,2.18174539,2939.0,2938.9,3.24349]
[1752341097747,3.16404539,2939.0,2938.9,2.5632]
[1752341098047,4.06874539,2939.0,2938.9,2.5632]
[1752341098350,4.06874539,2939.0,2938.9,3.24349]
[1752341098546,3.19726,2939.0,2938.9,3.24349]
[1752341099148,3.19726,2939.0,2938.9,2.5632]
[1752341100244,0.68031,2938.8,2938.7,2.62102]
[1752341100550,4.28656588,2938.8,2938.7,0.9809]
[1752341100744,4.28656588,2938.8,2938.7,2.5632]
[1752341100944,3.19731,2938.8,2938.7,2.5632]
[1752341101542,2.29268,2938.5,2938.4,3.24359]
[1752341101741,0.63,2938.5,2938.4,3.24359]
[1752341101948,3.19738,2938.5,2938.4,2.5632]
[1752341102148,3.19738,2938.5,2938.4,3.2436]
[1752341102451,1.6123,2938.5,2938.4,3.2436]
[1752341102645,0.63,2938.5,2938.4,3.2436]
[1752341103648,24.69524,2939.2,2939.1,2.5632]
[1752341103851,25.56641784,2939.2,2939.1,2.5632]
[1752341104955,25.56641784,2939.2,2939.1,3.24344]
[1752341105151,0.87117784,2939.2,2939.1,3.24344]
[1752341105349,24.28717784,2939.2,2939.1,3.24344]
[1752341105763,2.18139784,2939.2,2939.1,3.24344]
[1752341106051,1.31022,2939.2,2939.1,3.24344]
[1752341108048,0.63,2939.2,2939.1,3.24344]
[1752341109156,1.31022,2939.2,2939.1,3.24344]
[1752341109456,0.68021,2939.3,2939.2,3.21552]
[1752341109750,24.07921,2939.3,2939.2,3.21552]
[1752341110055,25.61268791,2939.3,2939.2,3.21552]
[1752341111558,26.55798791,2939.3,2939.2,2.5353]
[1752341112057,26.55798791,2939.3,2939.2,3.21552]
[1752341112249,2.21368791,2939.3,2939.2,2.5353]
[1752341112454,24.26237791,2939.3,2939.2,3.21552]
[1752341113259,24.94256791,2939.3,2939.2,3.21552]
[1752341113651,25.60466791,2939.3,2939.2,3.21552]
[1752341113853,28.57102379,2939.3,2939.2,2.5353]
[1752341116854,26.54996791,2939.3,2939.2,2.5353]
[1752341117056,25.60466791,2939.3,2939.2,3.21552]
[1752341117358,28.57102379,2939.3,2939.2,2.5353]
[1752341117552,1.34241,2938.9,2938.8,2.5353]
[1752341118759,1.34241,2938.9,2938.8,3.2156]
[1752341118955,2.28771,2938.9,2938.8,2.5353]
[1752341119154,3.21951,2938.9,2938.8,2.5353]
[1752341119360,26.59351,2938.9,2938.8,2.5353]
[1752341119567,0.68038,2938.6,2938.5,1.5573]
[1752341119863,3.21958,2938.6,2938.5,2.5353]
[1752341122059,3.21958,2938.6,2938.5,3.21568]
[1752341122259,3.21958,2938.6,2938.5,2.5353]
[1752341122662,0.68038,2938.6,2938.5,2.5353]
[1752341123862,0.68038,2938.6,2938.5,3.21568]
[1752341124258,24.71343,2938.8,2938.7,3.21561]
[1752341124763,25.58368893,2938.8,2938.7,3.21561]
[1752341126666,25.58368893,2938.8,2938.7,2.5353]
[1752341126859,27.46078893,2938.8,2938.7,2.5353]
[1752341127056,27.46078893,2938.8,2938.7,0.978]
[1752341127262,1.34246,2938.6,2938.5,3.21568]
[1752341127566,26.58756,2938.6,2938.5,3.21568]
[1752341128460,25.65576,2938.6,2938.5,3.21568]
[1752341129967,24.71046,2938.6,2938.5,3.21568]
[1752341131363,3.2078,2939.0,2938.5,2.5353]
[1752341131571,2.5392,2939.0,2938.9,2.5353]
[1752341131868,25.59940156,2939.0,2938.9,3.21559]
[1752341132068,1.53214156,2939.0,2938.9,3.21559]
[1752341132269,0.87004156,2939.0,2938.9,4.30484588]
[1752341132470,23.386,2939.1,2939.0,0.68026]
[1752341132666,0.86997165,2939.1,2939.0,2.23756]
[1752341132868,4.55011,2939.3,2939.2,2.23752]
[1752341133168,28.8150701,2939.3,2939.2,3.21552]
[1752341133370,28.8120701,2939.3,2939.2,3.21552]
[1752341134972,25.6042701,2939.3,2939.2,3.21552]
[1752341136070,25.6042701,2939.3,2939.2,2.5353]
[1752341136370,26.5088701,2939.3,2939.2,2.5353]
[1752341136572,27.4100701,2939.3,2939.2,2.5353]
[1752341137472,28.49932598,2939.3,2939.2,2.5353]
[1752341138664,27.4100701,2939.3,2939.2,2.5353]
[1752341144365,27.41019389,2939.3,2939.2,2.5353]
[1752341147572,25.56039389,2939.3,2939.2,2.5353]
[1752341147774,26.46499389,2939.3,2939.2,2.5353]
[1752341148372,25.56039389,2939.3,2939.2,2.5353]
[1752341150078,25.56039389,2939.3,2939.2,3.21552]
[1752341150278,2.21239389,2939.3,2939.2,3.21552]
[1752341150474,25.56039389,2939.3,2939.2,3.21552]
[1752341150975,25.56039389,2939.3,2939.2,2.5353]
[1752341152876,25.56039389,2939.3,2939.2,3.21552]
[1752341153076,25.56039389,2939.3,2939.2,2.5353]
[1752341153476,25.56039389,2939.3,2939.2,3.21552]
[1752341153679,25.56039389,2939.3,2939.2,2.5353]
[1752341154177,1.55029389,2939.3,2939.2,2.5353]
[1752341154376,3.2078,2939.4,2939.3,0.68019]
[1752341154377,0.68018,2939.4,2939.3,0.68019]
[1752341154581,0.68018,2939.4,2939.3,4.22824588]
[1752341154777,24.024648,2939.5,2939.4,0.68017]
[1752341154977,24.89306626,2939.5,2939.4,1.30347]
[1752341155178,24.024648,2939.5,2939.4,3.13897]
[1752341156085,0.689648,2939.5,2939.4,3.13897]
[1752341156383,24.037648,2939.5,2939.4,3.13897]
[1752341157285,0.009478,2939.5,2939.4,3.13897]
[1752341160579,0.689628,2939.5,2939.4,3.13897]
[1752341160775,0.009478,2939.5,2939.4,3.13897]
[1752341161481,0.00836688,2939.7,2939.4,7.4588]
[1752341161679,23.336,2940.1,2940.0,0.6233]
[1752341161887,24.88459916,2940.1,2940.0,3.13883]
[1752341162179,0.86858916,2940.1,2940.0,9.22808588]
[1752341162582,0.67993,2940.5,2940.4,0.67994]
[1752341162782,1.54809003,2940.5,2940.4,3.13874]
[1752341163483,0.67993,2940.5,2940.4,3.13874]
[1752341163679,1.4073,2940.6,2940.5,3.13872]
[1752341163884,2.24079,2940.6,2940.5,2.4588]
[1752341164181,0.9012,2940.6,2940.5,2.4588]
[1752341164385,0.9012,2940.7,2940.5,0.6233]
[1752341164582,1.8058,2940.9,2940.6,1.08925588]
[1752341164885,3.14532,2940.9,2940.8,1.5434]
[1752341165180,0.86652708,2940.9,2940.8,4.22790588]
[1752341165385,10.0,2941.0,2940.8,4.22790588]
[1752341165386,10.0,2941.0,2940.9,1.30312]
[1752341165581,10.0,2941.0,2940.9,3.13862]
[1752341165775,3.88745,2941.7,2941.4,0.6797]
[1752341165983,0.9012,2942.0,2941.7,0.9373]
[1752341166184,0.86540844,2942.0,2941.9,0.67959]
[1752341166386,0.86540844,2942.0,2941.9,5.91394588]
[1752341166685,1.21190074,2942.7,2942.4,0.67946]
[1752341166981,2.57718,2942.4,2942.3,3.2078]
[1752341167184,2.5189,2942.2,2942.1,0.9373]
[1752341167480,0.6212,2942.2,2942.1,0.9373]
[1752341167683,0.9154,2942.4,2942.3,0.67948]
[1752341167878,0.9154,2942.4,2942.2,0.67951]
[1752341168183,0.9823,2942.9,2942.4,0.9373]
[1752341168489,0.67943,2942.6,2942.5,0.9373]
[1752341168684,0.9154,2942.9,2942.5,0.9373]
[1752341168883,0.9154,2942.9,2942.6,1.08925588]
[1752341169087,4.1901,2943.3,2942.9,0.9373]
[1752341169282,0.9154,2942.8,2942.7,3.2078]
[1752341169889,1.71045588,2943.8,2943.4,0.9373]
[1752341170082,0.6212,2943.7,2943.5,0.9373]
[1752341170282,1.6035,2943.3,2942.8,0.9373]
[1752341170484,2.69275588,2942.9,2942.8,0.9373]
[1752341170782,1.6035,2942.6,2942.5,0.9373]
[1752341171986,2.5189,2942.6,2942.5,1.61675]
[1752341172184,2.5189,2942.6,2942.4,3.2078]
[1752341172486,3.19835,2942.5,2942.4,3.2078]
[1752341172686,1.8977,2942.0,2941.7,3.88743]
[1752341172992,0.9154,2941.8,2941.7,4.82473]
[1752341173382,2.5189,2941.8,2941.7,4.1451]
[1752341173590,2.5189,2941.8,2941.7,4.82474]
[1752341174585,2.5189,2941.8,2941.7,4.1451]
[1752341174986,3.19852,2941.8,2941.7,4.1451]
[1752341175181,3.19852,2941.8,2941.7,3.2078]
[1752341175582,0.6212,2941.5,2941.3,3.2078]
[1752341175786,2.5189,2941.4,2941.3,3.2078]
[1752341176386,0.6212,2941.1,2941.0,3.88759]
[1752341176588,1.6035,2941.1,2941.0,4.82489]
[1752341176886,2.5189,2941.1,2941.0,4.1451]
[1752341177086,2.5189,2941.1,2941.0,3.2078]
[1752341177289,3.19868,2941.1,2941.0,3.2078]
[1752341177993,0.67981,2941.0,2940.7,4.82496]
[1752341178192,2.5189,2940.8,2940.7,4.82496]
[1752341182392,2.5189,2941.3,2940.8,0.9373]
[1752341182587,2.5189,2941.3,2941.1,0.67976]
[1752341182789,2.5189,2941.3,2941.2,0.9373]
[1752341183290,2.5189,2941.3,2941.2,1.61705]
[1752341184085,3.19863,2941.3,2941.2,0.9373]
[1752341184788,2.5189,2941.3,2941.2,1.61705]
[1752341185194,3.19863,2941.3,2941.2,1.61705]
[1752341185394,0.6212,2940.9,2940.8,0.9373]
[1752341185587,2.5189,2940.8,2940.7,3.2078]
[1752341185791,3.19876,2940.8,2940.6,0.67988]
[1752341185987,1.6035,2940.7,2940.6,0.67988]
[1752341186192,2.5189,2940.7,2940.6,1.61718]
[1752341186595,2.5776,2940.6,2940.5,0.67992]
[1752341186898,2.5189,2940.6,2940.5,1.61722]
[1752341187397,3.19879,2940.6,2940.5,0.9373]
[1752341187704,3.19882,2940.5,2940.4,3.2078]
[1752341189297,3.19882,2940.5,2940.4,4.1451]
[1752341189899,2.5189,2940.5,2940.4,4.82504]
[1752341190200,3.19882,2940.5,2940.4,4.82504]
[1752341190401,3.19882,2940.5,2940.4,4.1451]
[1752341190994,3.19882,2940.5,2940.4,3.88774]
[1752341191205,3.19882,2940.5,2940.4,4.82504]
[1752341191401,2.5189,2940.5,2940.4,4.82504]
[1752341191797,3.19882,2940.5,2940.4,3.2078]
[1752341192001,3.19882,2940.5,2940.4,4.82504]
[1752341193305,2.5189,2940.5,2940.4,4.82504]
[1752341194007,0.9823,2941.1,2940.9,0.6798]
[1752341194207,1.5366,2941.0,2940.9,1.6171]
[1752341194807,0.9154,2941.0,2940.9,1.6171]
[1752341195307,1.5366,2941.0,2940.9,1.6171]
[1752341196606,0.9154,2941.0,2940.9,1.6171]
[1752341197701,1.5762,2941.0,2940.9,1.6171]
[1752341198006,2.5555,2941.0,2940.9,0.9373]
[1752341198907,3.2353,2941.0,2940.9,1.61712]
[1752341199102,3.2353,2941.0,2940.9,0.9373]
[1752341200006,3.2353,2941.0,2940.9,1.61712]
[1752341200907,2.5555,2941.0,2940.9,1.61712]
[1752341201503,3.2353,2941.0,2940.9,1.61712]
[1752341201906,2.5555,2941.0,2940.9,1.61712]
[1752341203613,3.2353,2941.0,2940.9,1.61712]
[1752341203806,2.5555,2941.0,2940.9,1.61712]
[1752341205108,1.5762,2941.0,2940.9,1.61712]
[1752341205314,2.5555,2941.0,2940.9,1.61712]
[1752341205510,3.2353,2941.0,2940.9,1.61712]
[1752341205813,2.5555,2941.0,2940.9,1.61712]
[1752341207513,3.2353,2941.0,2940.9,1.61712]
[1752341207716,0.6608,2940.8,2940.7,4.85067]
[1752341207915,2.5665,2940.8,2940.7,4.85067]
[1752341212322,3.24635,2940.8,2940.7,4.85067]
[1752341213318,3.24635,2940.8,2940.7,3.2078]
[1752341213719,3.24635,2940.8,2940.7,3.88767]
[1752341213922,3.24635,2940.8,2940.7,3.2078]
[1752341214418,1.34074,2940.5,2940.4,3.88773]
[1752341214620,3.24644,2940.5,2940.4,3.88773]
[1752341215025,3.24644,2940.5,2940.4,3.2078]
[1752341215926,3.24642,2940.5,2940.4,4.85074]
[1752341216621,3.24642,2940.5,2940.4,4.1708]
[1752341216816,3.24642,2940.5,2940.4,3.2078]
[1752341217328,2.5665,2940.1,2940.0,4.85082]
[1752341218122,3.24651,2940.1,2940.0,4.85082]
[1752341218421,3.24651,2940.1,2940.0,0.963]
[1752341218626,3.24651,2940.1,2940.0,1.64303]
[1752341218823,3.24651,2940.1,2940.0,0.963]
[1752341219220,1.34086,2939.9,2939.8,0.963]
[1752341219426,0.6608,2939.9,2939.8,0.963]
[1752341219725,3.24656,2939.9,2939.8,1.64308]
[1752341220328,2.5665,2939.9,2939.8,1.64308]
[1752341221524,3.24656,2939.9,2939.8,1.64308]
[1752341221929,3.24656,2939.9,2939.8,0.963]
[1752341222128,2.5665,2939.5,2939.4,3.88797]
[1752341222627,3.24665,2939.5,2939.4,0.68017]
[1752341222833,2.5665,2939.2,2939.1,4.85104]
[1752341223520,2.5665,2939.2,2939.1,1.64324]
[1752341224732,0.6608,2939.9,2939.8,1.6189]
[1752341225034,0.6608,2939.9,2939.8,2.29898]
[1752341225230,1.5872,2939.9,2939.8,2.29898]
[1752341226931,2.498,2939.9,2939.8,2.29898]
[1752341228037,2.498,2939.9,2939.8,0.68008]
[1752341228328,2.498,2939.9,2939.8,2.29948]
[1752341230934,0.9108,2940.3,2940.2,0.6315]
[1752341231228,1.31526,2940.4,2940.3,1.31144]
[1752341231434,1.5461,2940.2,2940.1,0.6315]
[1752341231630,1.5461,2940.2,2940.1,1.31151]
[1752341232536,1.5461,2940.2,2940.1,2.29941]
[1752341233038,2.5107,2940.2,2940.1,2.29941]
[1752341234132,2.5107,2940.2,2940.1,1.31151]
[1752341234836,2.5107,2940.2,2940.1,2.29941]
[1752341236638,2.5107,2940.2,2940.1,3.25131]
[1752341238534,2.5107,2940.5,2940.4,3.25124]
[1752341240342,2.5107,2940.5,2940.4,1.31144]
[1752341240542,3.19062,2940.5,2940.4,0.67994]
[1752341241241,2.5107,2940.5,2940.4,0.67994]
[1752341242133,1.5999,2940.3,2940.2,1.31147]
[1752341242334,2.5107,2940.3,2940.2,2.29937]
[1752341243731,3.19066,2940.3,2940.2,1.31147]
[1752341244138,3.19071,2940.2,2940.1,0.68]
[1752341244439,3.19071,2940.1,2940.0,1.66792]
[1752341244741,3.19071,2940.1,2940.0,1.6194]
[1752341245044,3.19071,2940.1,2939.7,3.2514]
[1752341245045,2.5107,2939.8,2939.7,3.2514]
[1752341246437,1.5999,2939.8,2939.7,3.2514]
[1752341246635,1.5461,2939.8,2939.7,3.2514]
[1752341246941,0.6353,2939.8,2939.7,3.2514]
[1752341249238,2.5107,2940.0,2939.9,2.29946]
[1752341249435,3.19073,2940.0,2939.9,3.25136]
[1752341250041,3.19073,2940.0,2939.9,2.5713]
[1752341250437,3.19073,2940.0,2939.9,3.25136]
[1752341250838,0.6353,2939.7,2939.6,0.6315]
[1752341251146,0.6353,2939.7,2939.6,3.25142]
[1752341251338,1.3154,2939.7,2939.6,3.25142]
[1752341251643,0.6353,2939.7,2939.6,3.25142]
[1752341252245,1.3154,2939.7,2939.6,3.25142]
[1752341252439,2.28,2939.7,2939.6,3.25142]
[1752341252639,1.31537,2939.9,2939.8,2.5713]
[1752341252840,3.19077,2939.9,2939.8,2.29948]
[1752341253036,3.19077,2939.9,2939.8,0.6315]
[1752341253338,2.2262,2939.8,2939.7,0.6315]
[1752341253546,3.1908,2939.8,2939.7,0.6315]
[1752341253743,3.1908,2939.8,2939.7,2.2995]
[1752341255243,3.1908,2939.8,2939.7,1.6194]
[1752341255743,2.5107,2939.6,2939.5,4.8272]
[1752341256042,2.30312,2939.6,2939.5,1.6194]
[1752341256238,3.26772,2939.6,2939.5,1.6194]
[1752341256448,3.26772,2939.6,2939.5,0.68015]
[1752341256945,2.5876,2939.6,2939.5,2.33665]
[1752341257651,2.5876,2939.6,2939.5,3.30275]
[1752341257949,2.5876,2939.6,2939.2,4.90831]
[1752341257950,2.5848,2939.3,2939.2,2.30611]
[1752341259450,3.26499,2939.3,2939.2,1.6259]
[1752341260154,3.26499,2939.3,2939.2,0.6598]
[1752341260747,1.5971,2939.1,2938.9,3.2078]
[1752341260951,3.26506,2939.0,2938.9,3.2078]
[1752341261151,0.6239,2938.8,2938.7,2.30623]
[1752341261348,3.26511,2938.8,2938.7,2.30623]
[1752341261556,3.26511,2938.8,2938.7,1.6259]
[1752341261758,2.5848,2938.8,2938.7,2.30623]
[1752341262154,3.26511,2938.8,2938.7,2.30623]
[1752341262459,2.5848,2938.8,2938.7,2.30623]
[1752341262660,3.26511,2938.8,2938.7,1.6259]
[1752341263961,2.5848,2938.5,2938.4,2.3063]
[1752341264162,2.5848,2938.5,2938.4,3.303]
[1752341264660,3.26518,2938.5,2938.4,2.6226]
[1752341264860,3.26518,2938.5,2938.4,3.303]
[1752341265060,3.26518,2938.5,2938.4,2.6226]
[1752341265260,3.26518,2938.5,2938.4,3.303]
[1752341265657,3.26518,2938.5,2938.4,2.6226]
[1752341265960,3.26518,2938.5,2938.4,1.6259]
[1752341269567,3.26518,2938.5,2938.4,2.6226]
[1752341269867,3.26518,2938.5,2938.4,3.303]
[1752341270563,3.26518,2938.5,2938.4,2.6226]
[1752341270762,7.5627135,2938.5,2938.4,1.6259]
[1752341271065,1.6116,2938.2,2938.1,3.30306]
[1752341271766,0.9877,2938.8,2938.7,1.34013]
[1752341272067,0.9877,2938.8,2938.7,4.3926635]
[1752341273065,1.6116,2938.8,2938.7,4.3926635]
[1752341273566,1.6116,2938.8,2938.7,3.30293]
[1752341274464,3.2078,2938.9,2938.8,2.33681]
[1752341274662,3.2078,2938.9,2938.8,3.30291]
[1752341275068,5.4996,2939.3,2939.2,0.68022]
[1752341275269,4.8194,2939.3,2939.2,3.30282]
[1752341277268,5.49959,2939.3,2939.2,3.30282]
[1752341277568,4.8194,2939.3,2939.2,3.30282]
[1752341277970,1.6116,2939.3,2939.2,3.30282]
[1752341279471,2.29173,2939.6,2939.5,2.6226]
[1752341279869,3.26493,2939.6,2939.5,3.30272]
[1752341280366,4.8194,2939.7,2939.6,3.30272]
[1752341280670,3.2078,2939.7,2939.6,4.3924535]
[1752341280860,3.2078,2939.7,2939.6,3.30272]
[1752341281065,1.30392,2940.1,2940.0,0.6598]
[1752341281266,2.16989303,2940.1,2940.0,2.33653]
[1752341281467,2.16989303,2940.1,2940.0,2.6226]
[1752341281768,2.16989303,2940.1,2940.0,3.30263]
[1752341281769,0.86597303,2940.1,2940.0,3.30263]
[1752341281969,3.2078,2940.2,2940.1,3.30261]
[1752341283571,1.6116,2940.2,2940.1,3.30261]
[1752341285266,2.29159,2940.2,2940.1,2.6226]
[1752341285467,3.26479,2940.2,2940.1,1.6259]
[1752341285665,3.26479,2940.2,2940.1,2.6226]
[1752341286375,3.26479,2940.2,2940.1,3.30261]
[1752341286674,2.29159,2940.2,2940.1,3.30261]
[1752341286874,1.6116,2940.2,2940.1,3.30261]
[1752341287673,0.67995,2940.4,2940.2,0.67999]
[1752341287975,2.23156,2940.3,2940.2,3.15459]
[1752341288165,1.5516,2940.3,2940.2,3.15459]
[1752341288369,3.13116,2940.3,2940.2,2.4746]
[1752341289676,3.13116,2940.3,2940.2,3.15459]
[1752341290376,2.23156,2940.3,2940.2,3.15459]
[1752341290877,1.5516,2940.3,2940.2,3.15459]
[1752341291774,2.23156,2940.3,2940.2,3.15459]
[1752341291974,1.5516,2940.3,2940.2,3.15459]
[1752341292174,5.43931,2940.6,2940.5,1.5726]
[1752341292370,5.43621,2940.6,2940.5,1.5726]
[1752341292571,6.33891,2940.6,2940.5,1.5726]
[1752341292775,6.33891,2940.6,2940.5,2.25252]
[1752341292977,6.33891,2940.6,2940.5,1.5726]
[1752341293979,6.33891,2940.6,2940.5,2.4746]
[1752341294472,6.33891,2940.6,2940.5,3.15452]
[1752341294779,5.659,2940.6,2940.5,3.15452]
[1752341294981,6.33889,2940.6,2940.5,3.15452]
[1752341295283,5.43929,2940.6,2940.5,3.15452]
[1752341295980,4.7594,2940.6,2940.5,3.15452]
[1752341296181,5.43929,2940.6,2940.5,3.15452]
[1752341296680,6.33889,2940.6,2940.5,3.15452]
[1752341296879,6.33889,2940.6,2940.5,2.4746]
[1752341297079,6.33889,2940.6,2940.5,3.15452]
[1752341300880,5.43929,2940.6,2940.5,3.15452]
[1752341301077,4.7594,2940.6,2940.5,3.15452]
[1752341301381,5.43929,2940.6,2940.5,3.15452]
[1752341301582,4.7594,2940.6,2940.5,3.15452]
[1752341301978,3.2078,2941.4,2941.0,0.902]
[1752341302185,5.43601,2941.4,2941.3,1.5111]
[1752341302382,4.7563,2941.4,2941.3,2.4746]
[1752341302775,1.5485,2941.4,2941.3,2.4746]
[1752341302976,4.1074,2941.7,2941.3,2.4746]
[1752341303183,4.7563,2941.7,2941.6,3.15426]
[1752341304085,5.659,2941.7,2941.6,3.15426]
[1752341305583,5.659,2941.7,2941.1,1.69944]
[1752341305584,4.7594,2941.7,2941.1,1.69944]
[1752341305884,2.4512,2941.4,2941.3,3.15433]
[1752341306981,0.6489,2941.4,2941.3,3.15433]
[1752341308582,2.4512,2941.4,2941.3,3.15433]
[1752341310791,0.6489,2941.4,2941.3,3.15433]
[1752341311684,3.2078,2941.7,2941.6,0.67966]
[1752341311889,3.8567,2941.7,2941.6,3.15426]
[1752341312089,4.7594,2941.7,2941.6,3.15426]
[1752341312793,5.659,2941.7,2941.6,3.15426]
[1752341313393,5.659,2941.7,2941.6,1.28876]
[1752341313791,5.659,2941.7,2941.6,3.15426]
[1752341313989,6.33864,2941.7,2941.6,2.4746]
[1752341314191,6.33864,2941.7,2941.6,3.15426]
[1752341314391,3.8567,2941.7,2941.6,3.15426]
[1752341314590,5.659,2941.7,2941.6,3.15426]
[1752341314890,6.33864,2941.7,2941.6,3.15426]
[1752341315495,5.659,2941.7,2941.6,3.15426]
[1752341315996,6.33864,2941.7,2941.6,3.15426]
[1752341316492,1.9317,2941.5,2941.4,2.25629]
[1752341316794,2.5764,2941.5,2941.4,3.21899]
[1752341320296,3.25609,2941.5,2941.4,3.21899]
[1752341320592,3.2078,2941.7,2941.6,3.21896]
[1752341320797,3.2078,2941.7,2941.6,4.3086935]
[1752341321096,3.2078,2941.7,2941.6,3.21896]
[1752341323994,3.2078,2941.7,2941.6,4.3086935]
[1752341324396,2.5764,2942.0,2941.9,1.29399]
[1752341324695,2.5764,2942.0,2941.9,3.21889]
[1752341327989,0.6447,2942.2,2942.1,1.29395]
[1752341328191,1.32422,2942.2,2942.1,1.29395]
[1752341328386,2.31482,2942.2,2942.1,1.29395]
[1752341328590,3.25592,2942.2,2942.1,2.25665]
[1752341328896,3.25592,2942.2,2942.1,3.21885]
[1752341329493,0.6447,2941.8,2941.7,3.8222]
[1752341329699,0.6447,2941.8,2941.7,5.46404]
[1752341330100,0.6447,2941.8,2941.7,6.42674]
[1752341331391,1.32432,2941.8,2941.7,6.42674]
[1752341331597,3.25602,2941.8,2941.7,6.42674]
[1752341332597,0.6447,2941.5,2941.4,2.5393]
[1752341332901,2.5764,2941.5,2941.4,3.21901]
[1752341333798,3.25609,2941.5,2941.4,3.21901]
[1752341333998,2.5764,2941.5,2941.4,3.21901]
[1752341334200,3.25609,2941.5,2941.4,3.21901]
[1752341335898,2.5764,2941.5,2941.4,3.21901]
[1752341336103,2.5764,2941.7,2941.6,3.21894]
[1752341336504,2.5764,2941.7,2941.5,1.0897335]
[1752341336505,5.7842,2942.2,2942.1,0.6144]
[1752341336698,7.34516682,2942.2,2942.1,1.5771]
[1752341336900,7.34516682,2942.2,2942.1,0.6144]
[1752341337203,7.34516682,2942.2,2942.1,3.21885]
[1752341337403,4.13736682,2942.2,2942.1,3.21885]
[1752341338204,3.25593,2942.2,2942.1,3.21885]
[1752341338707,3.25593,2942.2,2941.9,2.5393]
[1752341338708,3.25599,2942.0,2941.9,2.5393]
[1752341339801,0.6447,2941.9,2941.7,1.9249]
[1752341340101,0.6447,2941.7,2941.6,3.21896]
[1752341341508,3.25604,2941.7,2941.6,2.5393]
[1752341343009,3.25604,2941.7,2941.6,3.21896]
[1752341343711,0.6447,2941.7,2941.6,3.21896]
[1752341344312,0.6447,2941.7,2941.6,4.3086935]
[1752341345207,0.6447,2941.9,2941.8,3.21892]
[1752341346209,3.21509,2941.9,2941.8,3.21892]
[1752341348508,0.6235,2941.5,2941.4,3.8467]
[1752341348709,2.4793,2941.5,2941.4,5.44981]
[1752341349014,0.6235,2941.5,2941.4,5.44981]
[1752341349209,0.6235,2941.5,2941.4,6.42611]
[1752341352909,1.30319,2941.5,2941.4,6.42611]
[1752341353116,3.15899,2941.5,2941.4,6.42611]
[1752341354824,3.15899,2941.5,2941.4,3.21831]
[1752341355912,2.4793,2941.5,2941.4,3.21831]
[1752341356316,3.15899,2941.5,2941.4,3.21831]
[1752341358919,2.4793,2941.5,2941.4,3.21831]
[1752341361022,3.15899,2941.5,2941.4,3.21831]
[1752341361720,1.30318,2941.7,2941.6,0.67964]
[1752341361916,0.6797,2941.6,2941.5,0.67967]
[1752341362123,4.04149719,2941.6,2941.5,3.21827]
[1752341364017,4.04149719,2941.6,2941.5,0.67967]
[1752341364515,2.4793,2941.3,2941.0,1.8997]
[1752341364722,2.25298,2941.2,2941.1,1.6152]
[1752341364920,2.25298,2941.2,2941.1,2.5386]
[1752341364921,3.15908,2941.2,2941.1,2.5386]
[1752341366918,3.15908,2941.2,2941.1,3.21838]
[1752341367313,1.30319,2941.5,2941.4,0.6389]
[1752341367513,4.05381271,2941.5,2941.4,0.6389]
[1752341368019,1.30327,2941.2,2941.1,1.65605]
[1752341368225,3.15907,2941.2,2941.1,3.21835]
[1752341370325,2.4793,2941.2,2941.1,3.21835]
[1752341370627,3.15905,2941.2,2941.1,3.21835]
[1752341372320,0.6235,2941.2,2941.1,3.21835]
[1752341372624,3.15896,2941.6,2941.5,2.5386]
[1752341372825,4.0533504,2941.6,2941.5,2.5386]
[1752341373420,4.0533504,2941.6,2941.5,3.21829]
[1752341374223,3.15896,2941.6,2941.5,2.5386]